[Event "Reykjavik Open 2025"]
[Site "Reykjavik"]
[Date "2025.04.10"]
[Round "2.44"]
[White "Li, Guohao"]
[Black "Termeulen, Albert"]
[Result "1-0"]
[Annotator "ChessBase"]
[ECO "E63"]
[WhiteElo "2356"]
[BlackElo "1999"]
[PlyCount "75"]
[EventDate "2025.04.09"]
[EventType "swiss"]
[EventCountry "ISL"]
[SourceTitle "playchess.com"]
[Source "ChessBase"]
[SourceQuality "1"]
[TimeControl "40/5400+30:1800+30"]

1. d4 {[%emt 0:00:05]} Nf6 {[%emt 0:00:10]} 2. Nf3 {[%emt 0:00:05]} g6 {[%emt 0:00:10]} 3. c4 {[%emt 0:00:06]} Bg7 {[%emt 0:00:09]} 4. g3 {[%emt 0:00:06]} O-O {[%emt 0:00:08]} 5. Bg2 {[%emt 0:00:02]} d6 {[%emt 0:00:10]} 6. O-O {[%emt 0:00:09]} Nc6 {[%emt 0:00:06]} 7. Nc3 {[%emt 0:00:04]} a6 {[%emt 0:00:07]} 8. h3 {[%emt 0:00:59]} Rb8 {[%emt 0:01:55]} 9. e4 {[%emt 0:00:16]} b5 {[%emt 0:03:03]} 10. d5 {[%emt 0:00:50]} Na5 {[%emt 0:01:13]} 11. cxb5 {[%emt 0:00:37]} axb5 {[%emt 0:00:14]} 12. b4 {[%emt 0:00:06]} Nc4 {[%emt 0:03:44]} 13. Nd4 {[%emt 0:00:32]} Bd7 {[%emt 0:00:36]} 14. a4 {[%emt 0:00:07]} bxa4 {[%emt 0:05:11]} 15. b5 {[%emt 0:00:09]} e6 {[%emt 0:05:59]} 16. Qd3 {[%emt 0:06:42]} exd5 {[%emt 0:04:38]} 17. exd5 {[%emt 0:00:08]} Nb6 {[%emt 0:04:38]} 18. Be3 {[%emt 0:00:21]} Re8 {[%emt 0:05:02]} 19. Nc6 {[%emt 0:02:09]} Bxc6 {[%emt 0:01:13]} 20. dxc6 {[%emt 0:00:02]} Nh5 {[%emt 0:16:43]} 21. Ra3 {[%emt 0:06:26]} Rxe3 {[%emt 0:03:19]} 22. fxe3 {[%emt 0:00:09]} Nxg3 {[%emt 0:03:13]} 23. Rf2 {[%emt 0:00:45]} Qg5 {[%emt 0:09:08]} 24. Nd5 {[%emt 0:00:06]} Nxd5 {[%emt 0:11:47]} 25. Qxd5 {[%emt 0:01:00]} Nf5 {[%emt 0:00:51]} 26. Qd3 {[%emt 0:05:27]} h5 {[%emt 0:02:58]} 27. Rxf5 {[%emt 0:10:32]} gxf5 {[%emt 0:02:31]} 28. Rxa4 {[%emt 0:00:12]} Be5 {[%emt 0:01:05]} 29. Kf1 {[%emt 0:00:54]} Bg3 {[%emt 0:03:51]} 30. Ke2 {[%emt 0:03:08]} Re8 {[%emt 0:01:13]} 31. Bd5 {[%emt 0:00:51]} f4 {[%emt 0:05:05]} 32. Re4 {[%emt 0:00:05]} Re5 {[%emt 0:02:16]} 33. Rxe5 {[%emt 0:09:12]} Qxe5 {[%emt 0:00:02]} 34. Kf3 {[%emt 0:00:26]} fxe3 {[%emt 0:02:14]} 35. Qg6+ {[%emt 0:00:26]} Kh8 {[%emt 0:02:20]} 36. Qxf7 {[%emt 0:00:02]} Qg5 {[%emt 0:00:10]} 37. Qf8+ {[%emt 0:00:13]} Kh7 {[%emt 0:00:02]} 38. Be4+ {[%emt 0:00:05]} 1-0